[Event "Early-Titled-Tuesday-Blitz-February-06-2024"]
[Site "Chess.com"]
[Date "2024.02.06"]
[Round "11"]
[White "the_blue_pill"]
[Black "marsofsilva"]
[Result "1-0"]
[WhiteElo "2287"]
[BlackElo "2064"]
[TimeControl "180+1"]
[EndTime "10:06:17 PST"]
[Termination "the_blue_pill won by resignation"]

1. b3 {[%clk 0:02:49.6]} 1... d5 {[%clk 0:02:58.9]} 2. Bb2 {[%clk 0:02:49.9]}
2... c5 {[%clk 0:02:57.5]} 3. e3 {[%clk 0:02:50.1]} 3... Nf6 {[%clk 0:02:57.4]}
4. Nf3 {[%clk 0:02:49.8]} 4... e6 {[%clk 0:02:54.1]} 5. Ne5 {[%clk 0:02:40.8]}
5... a6 {[%clk 0:02:48.5]} 6. d3 {[%clk 0:02:34.1]} 6... Bd6 {[%clk 0:02:46.3]}
7. f4 {[%clk 0:02:33.8]} 7... O-O {[%clk 0:02:45.4]} 8. Nd2 {[%clk 0:02:33.5]}
8... Nc6 {[%clk 0:02:40]} 9. Nxc6 {[%clk 0:02:28.5]} 9... bxc6 {[%clk
0:02:39.9]} 10. g3 {[%clk 0:02:25.2]} 10... Rb8 {[%clk 0:02:37.6]} 11. Bg2
{[%clk 0:02:23]} 11... Re8 {[%clk 0:02:30.9]} 12. Nf3 {[%clk 0:02:19.9]} 12...
c4 {[%clk 0:02:27.1]} 13. dxc4 {[%clk 0:02:09.3]} 13... Ne4 {[%clk 0:02:18.3]}
14. cxd5 {[%clk 0:02:00.6]} 14... Bb4+ {[%clk 0:02:12.4]} 15. Kf1 {[%clk
0:02:00.5]} 15... cxd5 {[%clk 0:02:10]} 16. Ne5 {[%clk 0:01:41.2]} 16... Qb6
{[%clk 0:01:56.5]} 17. Bxe4 {[%clk 0:01:34.5]} 17... dxe4 {[%clk 0:01:55.7]} 18.
Nc4 {[%clk 0:01:27.4]} 18... Qc6 {[%clk 0:01:48.3]} 19. Kg2 {[%clk 0:01:16.3]}
19... a5 {[%clk 0:01:39.8]} 20. a3 {[%clk 0:01:06.1]} 20... Bc5 {[%clk
0:01:36.2]} 21. Nxa5 {[%clk 0:00:54.7]} 21... Qc7 {[%clk 0:01:33.8]} 22. b4
{[%clk 0:00:48.4]} 22... Bxe3 {[%clk 0:01:30]} 23. Be5 {[%clk 0:00:48]} 23...
Qb6 {[%clk 0:01:22.3]} 24. Bxb8 {[%clk 0:00:47.6]} 24... Qxb8 {[%clk 0:01:18.9]}
25. Qe2 {[%clk 0:00:44.6]} 25... Bd4 {[%clk 0:01:15.9]} 26. Rad1 {[%clk
0:00:39.7]} 26... e5 {[%clk 0:01:06.1]} 27. Nc6 {[%clk 0:00:30.3]} 27... Qb6
{[%clk 0:01:01.1]} 28. Nxe5 {[%clk 0:00:29.7]} 28... Ba6 {[%clk 0:00:52.2]} 29.
c4 {[%clk 0:00:26.8]} 29... Bxe5 {[%clk 0:00:41.5]} 30. fxe5 {[%clk 0:00:26.4]}
30... Rxe5 {[%clk 0:00:41.5]} 31. c5 {[%clk 0:00:14.4]} 31... Bxe2 {[%clk
0:00:36.9]} 32. cxb6 {[%clk 0:00:14.7]} 32... Bxd1 {[%clk 0:00:36.2]} 33. Rxd1
{[%clk 0:00:14.5]} 33... Re8 {[%clk 0:00:31.7]} 34. b7 {[%clk 0:00:14.5]} 34...
e3 {[%clk 0:00:31.3]} 35. Re1 {[%clk 0:00:12.4]} 35... g6 {[%clk 0:00:20.9]} 36.
Rxe3 {[%clk 0:00:13.3]} 36... Rb8 {[%clk 0:00:20.9]} 37. Re7 {[%clk 0:00:13.5]}
37... Kf8 {[%clk 0:00:21]} 38. Rc7 {[%clk 0:00:14.1]} 38... Ke8 {[%clk 0:00:21]}
39. a4 {[%clk 0:00:14.6]} 39... Kd8 {[%clk 0:00:20.5]} 40. Rxf7 {[%clk
0:00:14.9]} 1-0

[Event "Early-Titled-Tuesday-Blitz-February-06-2024"]
[Site "Chess.com"]
[Date "2024.02.06"]
[Round "11"]
[White "FrenchMonster2002"]
[Black "Aslanov_Umid"]
[Result "0-1"]
[WhiteElo "2479"]
[BlackElo "2675"]
[TimeControl "180+1"]
[EndTime "10:06:23 PST"]
[Termination "Aslanov_Umid won on time"]

1. e4 {[%clk 0:02:55.6]} 1... c5 {[%clk 0:03:00.4]} 2. Nc3 {[%clk 0:02:55]} 2...
d6 {[%clk 0:03:00.6]} 3. d4 {[%clk 0:02:54.9]} 3... cxd4 {[%clk 0:03:01.5]} 4.
Qxd4 {[%clk 0:02:55.5]} 4... Nc6 {[%clk 0:03:00.2]} 5. Qd2 {[%clk 0:02:56.1]}
5... g6 {[%clk 0:03:00.7]} 6. b3 {[%clk 0:02:56.3]} 6... Bh6 {[%clk 0:03:01]} 7.
f4 {[%clk 0:02:56.2]} 7... Nf6 {[%clk 0:03:01.2]} 8. Bb2 {[%clk 0:02:56.2]} 8...
O-O {[%clk 0:03:01.3]} 9. O-O-O {[%clk 0:02:56.2]} 9... e5 {[%clk 0:03:02]} 10.
g3 {[%clk 0:02:55]} 10... Bg4 {[%clk 0:03:00.7]} 11. Be2 {[%clk 0:02:32.1]}
11... Nd4 {[%clk 0:02:58.6]} 12. Bxg4 {[%clk 0:02:25.9]} 12... Nxg4 {[%clk
0:02:59.5]} 13. Nd5 {[%clk 0:02:22]} 13... Nc6 {[%clk 0:02:43.6]} 14. Kb1 {[%clk
0:02:18.3]} 14... Nf6 {[%clk 0:02:34.4]} 15. Nxf6+ {[%clk 0:01:59.2]} 15... Qxf6
{[%clk 0:02:32.9]} 16. fxe5 {[%clk 0:01:59.3]} 16... Bxd2 {[%clk 0:02:05.9]} 17.
exf6 {[%clk 0:01:58.6]} 17... Bh6 {[%clk 0:02:04.7]} 18. Rxd6 {[%clk 0:01:50]}
18... Rfe8 {[%clk 0:02:05.3]} 19. Nf3 {[%clk 0:01:33]} 19... Rxe4 {[%clk
0:02:05.9]} 20. Rd7 {[%clk 0:01:27.7]} 20... b5 {[%clk 0:02:02.7]} 21. Rhd1
{[%clk 0:01:22.5]} 21... a5 {[%clk 0:01:51.4]} 22. Rc7 {[%clk 0:01:10.3]} 22...
Re3 {[%clk 0:01:44.9]} 23. Rf1 {[%clk 0:00:46.6]} 23... Re6 {[%clk 0:01:39.8]}
24. Rd1 {[%clk 0:00:32]} 24... a4 {[%clk 0:01:36.2]} 25. a3 {[%clk 0:00:23.7]}
25... b4 {[%clk 0:01:32]} 26. axb4 {[%clk 0:00:14.2]} 26... axb3 {[%clk
0:01:25.5]} 27. cxb3 {[%clk 0:00:12.7]} 27... Nxb4 {[%clk 0:01:24.9]} 28. Rcd7
{[%clk 0:00:03.8]} 28... Rae8 {[%clk 0:01:15.5]} 29. Ne5 {[%clk 0:00:03.4]}
29... Rxe5 {[%clk 0:01:10.9]} 30. Bxe5 {[%clk 0:00:03.7]} 30... Rxe5 {[%clk
0:01:11.8]} 31. Re7 {[%clk 0:00:03.7]} 31... Re6 {[%clk 0:00:47.6]} 32. Rd8+
{[%clk 0:00:03.2]} 32... Bf8 {[%clk 0:00:46.5]} 33. Ree8 {[%clk 0:00:02]} 33...
Rxe8 {[%clk 0:00:30.2]} 34. Rxe8 {[%clk 0:00:02.9]} 34... h5 {[%clk 0:00:29]}
35. Kb2 {[%clk 0:00:03]} 35... Nd5 {[%clk 0:00:28.4]} 36. Rd8 {[%clk 0:00:02.5]}
36... Nxf6 {[%clk 0:00:27.1]} 37. b4 {[%clk 0:00:02.9]} 37... Ne4 {[%clk
0:00:23.6]} 38. b5 {[%clk 0:00:02.6]} 38... Nd6 {[%clk 0:00:23.8]} 0-1

[Event "Early-Titled-Tuesday-Blitz-February-06-2024"]
[Site "Chess.com"]
[Date "2024.02.06"]
[Round "11"]
[White "esrosenberg"]
[Black "BashirliSaadat"]
[Result "0-1"]
[WhiteElo "2416"]
[BlackElo "2349"]
[TimeControl "180+1"]
[EndTime "10:06:24 PST"]
[Termination "BashirliSaadat won on time"]

1. Nf3 {[%clk 0:03:00.9]} 1... d5 {[%clk 0:02:59]} 2. d4 {[%clk 0:02:59.4]} 2...
Nf6 {[%clk 0:02:59]} 3. c3 {[%clk 0:02:56.3]} 3... c6 {[%clk 0:02:57.1]} 4. Qc2
{[%clk 0:02:55.9]} 4... g6 {[%clk 0:02:56.5]} 5. h3 {[%clk 0:02:48]} 5... Bf5
{[%clk 0:02:56.6]} 6. Qb3 {[%clk 0:02:48.7]} 6... Qb6 {[%clk 0:02:55.9]} 7. Bf4
{[%clk 0:02:45.6]} 7... Bg7 {[%clk 0:02:54.2]} 8. Nbd2 {[%clk 0:02:44.2]} 8...
O-O {[%clk 0:02:53.4]} 9. g4 {[%clk 0:02:36.5]} 9... Be6 {[%clk 0:02:46.3]} 10.
Bg2 {[%clk 0:02:32.3]} 10... Nbd7 {[%clk 0:02:45.8]} 11. Ng5 {[%clk 0:02:32]}
11... h6 {[%clk 0:02:38.6]} 12. Nxe6 {[%clk 0:02:31.7]} 12... fxe6 {[%clk
0:02:39.1]} 13. e3 {[%clk 0:02:24.2]} 13... Kh7 {[%clk 0:02:31.4]} 14. Qc2
{[%clk 0:02:21.4]} 14... c5 {[%clk 0:02:28.8]} 15. h4 {[%clk 0:01:50.6]} 15...
Nxg4 {[%clk 0:02:23.1]} 16. h5 {[%clk 0:01:50.6]} 16... e5 {[%clk 0:02:01]} 17.
dxe5 {[%clk 0:01:40.5]} 17... Ngxe5 {[%clk 0:01:51.6]} 18. Bxd5 {[%clk
0:01:32.8]} 18... Qd6 {[%clk 0:01:40.4]} 19. hxg6+ {[%clk 0:01:28.9]} 19... Kh8
{[%clk 0:01:30]} 20. Be4 {[%clk 0:00:24.3]} 20... Rxf4 {[%clk 0:01:29.1]} 21.
exf4 {[%clk 0:00:24.1]} 21... Ng4 {[%clk 0:01:29.8]} 22. Nc4 {[%clk 0:00:14.3]}
22... Qxf4 {[%clk 0:01:28.4]} 23. f3 {[%clk 0:00:08.8]} 23... Qg3+ {[%clk
0:01:25.8]} 24. Kf1 {[%clk 0:00:07]} 24... Nh2+ {[%clk 0:01:24.4]} 25. Qxh2
{[%clk 0:00:05.7]} 25... Qg5 {[%clk 0:01:21.1]} 26. Rd1 {[%clk 0:00:05.3]} 26...
Nf6 {[%clk 0:01:19.5]} 27. Qh4 {[%clk 0:00:04.6]} 27... Nxe4 {[%clk 0:01:12]}
28. Qxe4 {[%clk 0:00:04.2]} 28... Rf8 {[%clk 0:01:10.5]} 29. Rh3 {[%clk
0:00:03.3]} 29... e5 {[%clk 0:01:04]} 30. Kf2 {[%clk 0:00:03.2]} 30... h5 {[%clk
0:01:00.5]} 31. Rg1 {[%clk 0:00:02.4]} 31... Qh6 {[%clk 0:00:57.7]} 32. Nxe5
{[%clk 0:00:02.1]} 32... Qd2+ {[%clk 0:00:47.1]} 33. Kg3 {[%clk 0:00:02.7]}
33... Qg5+ {[%clk 0:00:36.9]} 34. Ng4 {[%clk 0:00:02.9]} 34... Kg8 {[%clk
0:00:34.1]} 35. Qe6+ {[%clk 0:00:03]} 35... Kh8 {[%clk 0:00:33.3]} 36. Rgh1
{[%clk 0:00:02.1]} 36... Qf4+ {[%clk 0:00:29.4]} 37. Kh4 {[%clk 0:00:02.8]}
37... Bf6+ {[%clk 0:00:27.4]} 38. Qxf6+ {[%clk 0:00:01.4]} 38... Rxf6 {[%clk
0:00:27.3]} 39. Kxh5 {[%clk 0:00:01.8]} 39... Rf5+ {[%clk 0:00:27.2]} 0-1

[Event "Early-Titled-Tuesday-Blitz-February-06-2024"]
[Site "Chess.com"]
[Date "2024.02.06"]
[Round "11"]
[White "Narek_Ghimoyan"]
[Black "KhungThep"]
[Result "1-0"]
[WhiteElo "2435"]
[BlackElo "2565"]
[TimeControl "180+1"]
[EndTime "10:06:25 PST"]
[Termination "Narek_Ghimoyan won by resignation"]

1. d4 {[%clk 0:03:00.9]} 1... Nf6 {[%clk 0:02:48.3]} 2. c4 {[%clk 0:03:00.5]}
2... e6 {[%clk 0:02:48.5]} 3. Nf3 {[%clk 0:02:58.7]} 3... Bb4+ {[%clk
0:02:48.3]} 4. Bd2 {[%clk 0:02:58.3]} 4... Qe7 {[%clk 0:02:47.7]} 5. Nc3 {[%clk
0:02:57]} 5... O-O {[%clk 0:02:45.9]} 6. e3 {[%clk 0:02:57.2]} 6... b6 {[%clk
0:02:43.5]} 7. Bd3 {[%clk 0:02:56.4]} 7... Bb7 {[%clk 0:02:43.7]} 8. O-O {[%clk
0:02:56.5]} 8... d6 {[%clk 0:02:41.3]} 9. a3 {[%clk 0:02:54.4]} 9... Bxc3 {[%clk
0:02:41.6]} 10. Bxc3 {[%clk 0:02:55.3]} 10... Ne4 {[%clk 0:02:41.9]} 11. Nd2
{[%clk 0:02:53.5]} 11... Nxc3 {[%clk 0:02:33]} 12. bxc3 {[%clk 0:02:54.4]} 12...
Nd7 {[%clk 0:02:32.2]} 13. Qc2 {[%clk 0:02:53]} 13... g6 {[%clk 0:02:29.6]} 14.
Be4 {[%clk 0:02:52.5]} 14... Bxe4 {[%clk 0:02:27.4]} 15. Qxe4 {[%clk 0:02:52.4]}
15... Nf6 {[%clk 0:02:27.2]} 16. Qc6 {[%clk 0:02:52]} 16... Qd7 {[%clk 0:02:25]}
17. Qxd7 {[%clk 0:02:50.6]} 17... Nxd7 {[%clk 0:02:25.9]} 18. a4 {[%clk
0:02:50.8]} 18... a5 {[%clk 0:02:25.7]} 19. Rab1 {[%clk 0:02:48.1]} 19... e5
{[%clk 0:02:24.3]} 20. Ne4 {[%clk 0:02:42.7]} 20... Kg7 {[%clk 0:02:20.2]} 21.
Ng5 {[%clk 0:02:38]} 21... h6 {[%clk 0:02:18.9]} 22. Nf3 {[%clk 0:02:38.1]}
22... Rfe8 {[%clk 0:02:17.1]} 23. Rb5 {[%clk 0:02:36.8]} 23... Rad8 {[%clk
0:02:11.2]} 24. Rfb1 {[%clk 0:02:35.7]} 24... Re7 {[%clk 0:02:05]} 25. Ne1
{[%clk 0:02:29.2]} 25... f5 {[%clk 0:02:02.9]} 26. Nd3 {[%clk 0:02:28.6]} 26...
Ree8 {[%clk 0:01:45.7]} 27. g3 {[%clk 0:02:21]} 27... Kf6 {[%clk 0:01:44.4]} 28.
c5 {[%clk 0:02:20.4]} 28... dxc5 {[%clk 0:01:26.5]} 29. dxc5 {[%clk 0:02:20]}
29... e4 {[%clk 0:01:26]} 30. cxb6 {[%clk 0:01:50.1]} 30... c6 {[%clk 0:01:10]}
31. Rxa5 {[%clk 0:01:39.9]} 31... exd3 {[%clk 0:01:09.2]} 32. b7 {[%clk
0:01:40]} 32... d2 {[%clk 0:00:58.3]} 33. Rd1 {[%clk 0:01:26.3]} 33... Ne5
{[%clk 0:00:53.3]} 34. f4 {[%clk 0:01:25.6]} 34... Nc4 {[%clk 0:00:52.7]} 35.
Rc5 {[%clk 0:01:24.8]} 35... Nxe3 {[%clk 0:00:17]} 36. Rxc6+ {[%clk 0:01:22.9]}
36... Re6 {[%clk 0:00:15.3]} 37. Rxe6+ {[%clk 0:01:21.5]} 37... Kxe6 {[%clk
0:00:16.2]} 38. Rxd2 {[%clk 0:01:22.4]} 38... Rb8 {[%clk 0:00:09.8]} 39. Re2
{[%clk 0:01:22]} 39... Rxb7 {[%clk 0:00:10.1]} 40. Rxe3+ {[%clk 0:01:22.5]}
40... Kd5 {[%clk 0:00:10.7]} 41. a5 {[%clk 0:01:20.2]} 41... Kc4 {[%clk
0:00:10.8]} 42. Re6 {[%clk 0:01:18.4]} 42... Ra7 {[%clk 0:00:08.8]} 43. Rxg6
{[%clk 0:01:16.7]} 43... Rxa5 {[%clk 0:00:09]} 44. Rxh6 {[%clk 0:01:16.8]} 44...
Kxc3 {[%clk 0:00:08.6]} 45. Re6 {[%clk 0:01:17.3]} 45... Kd4 {[%clk 0:00:08.4]}
46. Kg2 {[%clk 0:01:16.1]} 46... Ra7 {[%clk 0:00:05.7]} 47. h4 {[%clk
0:01:14.5]} 47... Rg7 {[%clk 0:00:05.1]} 48. Rf6 {[%clk 0:01:11.6]} 48... Ke4
{[%clk 0:00:03.8]} 49. Re6+ {[%clk 0:01:12.2]} 49... Kd4 {[%clk 0:00:04.3]} 50.
Re5 {[%clk 0:01:13.1]} 50... Rf7 {[%clk 0:00:04.2]} 51. Kh3 {[%clk 0:01:13.6]}
51... Rf8 {[%clk 0:00:04.5]} 52. h5 {[%clk 0:01:13.7]} 52... Rf7 {[%clk
0:00:05.4]} 53. Kh4 {[%clk 0:01:13.8]} 53... Rf8 {[%clk 0:00:04.6]} 54. h6
{[%clk 0:01:13.5]} 54... Rf7 {[%clk 0:00:03.7]} 55. Kg5 {[%clk 0:01:12.9]} 55...
Rf8 {[%clk 0:00:04.2]} 56. h7 {[%clk 0:01:12.4]} 56... Rg8+ {[%clk 0:00:05.1]}
57. hxg8=Q {[%clk 0:01:12]} 1-0

[Event "Early-Titled-Tuesday-Blitz-February-06-2024"]
[Site "Chess.com"]
[Date "2024.02.06"]
[Round "11"]
[White "Barmen_EV"]
[Black "mkllnd1517"]
[Result "1-0"]
[WhiteElo "2489"]
[BlackElo "2350"]
[TimeControl "180+1"]
[EndTime "10:06:25 PST"]
[Termination "Barmen_EV won by checkmate"]

1. e4 {[%clk 0:02:58]} 1... e6 {[%clk 0:02:59.7]} 2. d4 {[%clk 0:02:57.6]} 2...
d5 {[%clk 0:03:00.1]} 3. Nd2 {[%clk 0:02:57.7]} 3... Be7 {[%clk 0:02:59.7]} 4.
Ngf3 {[%clk 0:02:57.3]} 4... Nf6 {[%clk 0:02:59.9]} 5. Bd3 {[%clk 0:02:57.4]}
5... c5 {[%clk 0:02:59.5]} 6. c3 {[%clk 0:02:57.7]} 6... cxd4 {[%clk 0:02:59]}
7. cxd4 {[%clk 0:02:58]} 7... dxe4 {[%clk 0:02:56.9]} 8. Nxe4 {[%clk 0:02:58.6]}
8... Bd7 {[%clk 0:02:57.6]} 9. O-O {[%clk 0:02:54.7]} 9... Bc6 {[%clk
0:02:57.9]} 10. Re1 {[%clk 0:02:53.7]} 10... Nbd7 {[%clk 0:02:55.9]} 11. Nc3
{[%clk 0:02:52.3]} 11... O-O {[%clk 0:02:54.5]} 12. Bc2 {[%clk 0:02:46.5]} 12...
Nd5 {[%clk 0:02:41.6]} 13. a3 {[%clk 0:02:42.9]} 13... Rc8 {[%clk 0:02:31.2]}
14. Qd3 {[%clk 0:02:42.2]} 14... N7f6 {[%clk 0:02:31.2]} 15. Bg5 {[%clk
0:02:41.6]} 15... g6 {[%clk 0:02:26.1]} 16. Bh6 {[%clk 0:02:37.8]} 16... Re8
{[%clk 0:02:25.8]} 17. Ne5 {[%clk 0:02:38.5]} 17... Nxc3 {[%clk 0:02:24.9]} 18.
bxc3 {[%clk 0:02:39.4]} 18... Qd5 {[%clk 0:02:15.8]} 19. Qh3 {[%clk 0:02:36.5]}
19... Nd7 {[%clk 0:01:57.2]} 20. c4 {[%clk 0:02:00.8]} 20... Qd6 {[%clk
0:01:40.8]} 21. c5 {[%clk 0:01:44.7]} 21... Qxd4 {[%clk 0:01:25]} 22. Nxf7
{[%clk 0:01:42.4]} 22... Nxc5 {[%clk 0:01:15.2]} 23. Ne5 {[%clk 0:01:30]} 23...
Bd5 {[%clk 0:01:11.2]} 24. Rad1 {[%clk 0:01:22.7]} 24... Qb2 {[%clk 0:01:03.9]}
25. Bxg6 {[%clk 0:01:14.2]} 25... hxg6 {[%clk 0:01:01]} 26. Bc1 {[%clk
0:01:14.8]} 26... Qb3 {[%clk 0:00:43.4]} 27. Qh6 {[%clk 0:01:09]} 27... Be4
{[%clk 0:00:39]} 28. Nxg6 {[%clk 0:00:59.3]} 28... Bf6 {[%clk 0:00:25.7]} 29.
Bg5 {[%clk 0:00:56.3]} 29... Bg7 {[%clk 0:00:22.9]} 30. Qh5 {[%clk 0:00:53.4]}
30... Bxg6 {[%clk 0:00:06.9]} 31. Qxg6 {[%clk 0:00:54.3]} 31... Qc3 {[%clk
0:00:06.3]} 32. Re3 {[%clk 0:00:51.2]} 32... Qb2 {[%clk 0:00:06.6]} 33. Rh3
{[%clk 0:00:49.7]} 33... Nd7 {[%clk 0:00:03.4]} 34. Qh7+ {[%clk 0:00:47.2]}
34... Kf8 {[%clk 0:00:03.9]} 35. Rf3+ {[%clk 0:00:47.8]} 35... Nf6 {[%clk
0:00:03.5]} 36. h4 {[%clk 0:00:32.4]} 36... Rcd8 {[%clk 0:00:03.7]} 37. Re1
{[%clk 0:00:22.6]} 37... Qb6 {[%clk 0:00:03.9]} 38. Rxf6+ {[%clk 0:00:20.8]}
38... Bxf6 {[%clk 0:00:03.7]} 39. Bh6+ {[%clk 0:00:21.3]} 39... Bg7 {[%clk
0:00:03.6]} 40. Qxg7# {[%clk 0:00:22.2]} 1-0

[Event "Early-Titled-Tuesday-Blitz-February-06-2024"]
[Site "Chess.com"]
[Date "2024.02.06"]
[Round "11"]
[White "Willhaven3"]
[Black "deribas12345"]
[Result "0-1"]
[WhiteElo "2614"]
[BlackElo "2549"]
[TimeControl "180+1"]
[EndTime "10:06:27 PST"]
[Termination "deribas12345 won by checkmate"]

1. d4 {[%clk 0:03:00.9]} 1... Nf6 {[%clk 0:02:58.7]} 2. Nf3 {[%clk 0:03:01.4]}
2... c5 {[%clk 0:02:58.3]} 3. d5 {[%clk 0:03:01.5]} 3... b5 {[%clk 0:02:58.6]}
4. Bg5 {[%clk 0:03:01.2]} 4... g6 {[%clk 0:02:57.3]} 5. e3 {[%clk 0:02:52.1]}
5... b4 {[%clk 0:02:56]} 6. c4 {[%clk 0:02:51.4]} 6... Ne4 {[%clk 0:02:49.1]} 7.
Bh4 {[%clk 0:02:48.2]} 7... Bg7 {[%clk 0:02:48.9]} 8. Nbd2 {[%clk 0:02:43]} 8...
Nd6 {[%clk 0:02:41.1]} 9. Qc2 {[%clk 0:02:38]} 9... Nf5 {[%clk 0:02:35.4]} 10.
Bg5 {[%clk 0:02:34.6]} 10... d6 {[%clk 0:02:26.6]} 11. h3 {[%clk 0:02:29.3]}
11... Na6 {[%clk 0:02:19]} 12. Bd3 {[%clk 0:02:24.5]} 12... b3 {[%clk
0:02:14.8]} 13. axb3 {[%clk 0:02:11.1]} 13... Nb4 {[%clk 0:02:12.5]} 14. Qb1
{[%clk 0:02:10.6]} 14... Nxd3+ {[%clk 0:02:05.1]} 15. Qxd3 {[%clk 0:02:11.5]}
15... Bxb2 {[%clk 0:02:05.2]} 16. Ra2 {[%clk 0:02:08.8]} 16... Bg7 {[%clk
0:02:04.4]} 17. O-O {[%clk 0:02:05]} 17... h6 {[%clk 0:01:53.4]} 18. Bf4 {[%clk
0:02:04.8]} 18... g5 {[%clk 0:01:53.9]} 19. Bh2 {[%clk 0:02:05.3]} 19... O-O
{[%clk 0:01:19.1]} 20. g4 {[%clk 0:01:45]} 20... Nh4 {[%clk 0:01:17.9]} 21. Nxh4
{[%clk 0:01:44.8]} 21... gxh4 {[%clk 0:01:18.8]} 22. e4 {[%clk 0:01:38.3]} 22...
h5 {[%clk 0:01:09]} 23. f3 {[%clk 0:01:33.5]} 23... Bd4+ {[%clk 0:00:55.8]} 24.
Kh1 {[%clk 0:01:33]} 24... e5 {[%clk 0:00:51.5]} 25. dxe6 {[%clk 0:01:28.5]}
25... Bxe6 {[%clk 0:00:46.2]} 26. b4 {[%clk 0:01:11.7]} 26... Rb8 {[%clk
0:00:35.4]} 27. b5 {[%clk 0:01:11]} 27... Rxb5 {[%clk 0:00:34.8]} 28. Rxa7
{[%clk 0:00:59.8]} 28... Rb2 {[%clk 0:00:34.5]} 29. Ra6 {[%clk 0:00:59.2]} 29...
Qg5 {[%clk 0:00:30.5]} 30. f4 {[%clk 0:00:54.3]} 30... Qg7 {[%clk 0:00:30.2]}
31. f5 {[%clk 0:00:42.8]} 31... hxg4 {[%clk 0:00:30.2]} 32. fxe6 {[%clk
0:00:36.3]} 32... g3 {[%clk 0:00:30.7]} 33. Bxg3 {[%clk 0:00:21.8]} 33... hxg3
{[%clk 0:00:30.4]} 34. Kg2 {[%clk 0:00:17.8]} 34... Qg5 {[%clk 0:00:25.8]} 35.
Rd1 {[%clk 0:00:11]} 35... fxe6 {[%clk 0:00:24]} 36. Kh1 {[%clk 0:00:02.2]}
36... g2+ {[%clk 0:00:23.3]} 37. Kh2 {[%clk 0:00:02.3]} 37... g1=Q+ {[%clk
0:00:23.5]} 38. Rxg1 {[%clk 0:00:01.8]} 38... Qxg1# {[%clk 0:00:24.4]} 0-1

[Event "Early-Titled-Tuesday-Blitz-February-06-2024"]
[Site "Chess.com"]
[Date "2024.02.06"]
[Round "11"]
[White "Mackster23"]
[Black "TigrVShlyape"]
[Result "1-0"]
[WhiteElo "2759"]
[BlackElo "2933"]
[TimeControl "180+1"]
[EndTime "10:06:29 PST"]
[Termination "Mackster23 won on time"]

1. e4 {[%clk 0:02:53.5]} 1... g6 {[%clk 0:02:51.3]} 2. d4 {[%clk 0:02:53.4]}
2... Bg7 {[%clk 0:02:44.3]} 3. Nc3 {[%clk 0:02:53.6]} 3... d6 {[%clk 0:02:44.1]}
4. Be3 {[%clk 0:02:53.7]} 4... a6 {[%clk 0:02:44.3]} 5. Qd2 {[%clk 0:02:53.6]}
5... b5 {[%clk 0:02:43.6]} 6. O-O-O {[%clk 0:02:53.6]} 6... Bb7 {[%clk
0:02:36.9]} 7. f3 {[%clk 0:02:53.4]} 7... Nd7 {[%clk 0:02:35.7]} 8. h4 {[%clk
0:02:51.3]} 8... h5 {[%clk 0:02:34.9]} 9. Nh3 {[%clk 0:02:50.5]} 9... e6 {[%clk
0:02:34.4]} 10. Ng5 {[%clk 0:02:50.2]} 10... Ngf6 {[%clk 0:02:32]} 11. g3 {[%clk
0:02:48.1]} 11... Qe7 {[%clk 0:02:20.4]} 12. Bh3 {[%clk 0:02:29.7]} 12... c5
{[%clk 0:01:52.6]} 13. dxc5 {[%clk 0:02:28.4]} 13... dxc5 {[%clk 0:01:52.1]} 14.
Bf4 {[%clk 0:02:14]} 14... b4 {[%clk 0:01:19.3]} 15. Bd6 {[%clk 0:01:24.3]}
15... bxc3 {[%clk 0:01:16.7]} 16. Qxc3 {[%clk 0:01:25.2]} 16... Qd8 {[%clk
0:01:12.6]} 17. Qb3 {[%clk 0:01:23.6]} 17... Qb6 {[%clk 0:01:09.1]} 18. Bxe6
{[%clk 0:01:16.1]} 18... Qxb3 {[%clk 0:01:04.8]} 19. Bxb3 {[%clk 0:01:17]} 19...
O-O-O {[%clk 0:00:42.7]} 20. Nxf7 {[%clk 0:01:15.6]} 20... Rde8 {[%clk
0:00:36.7]} 21. Nxh8 {[%clk 0:01:15.1]} 21... Rxh8 {[%clk 0:00:36.2]} 22. Bf7
{[%clk 0:01:13.2]} 22... Ne8 {[%clk 0:00:25.5]} 23. Bf4 {[%clk 0:01:00.4]} 23...
Ne5 {[%clk 0:00:20.6]} 24. Be6+ {[%clk 0:01:00.6]} 24... Kb8 {[%clk 0:00:15.2]}
25. Rd7 {[%clk 0:00:50.7]} 25... Bf6 {[%clk 0:00:12.9]} 26. Rf7 {[%clk
0:00:48.6]} 26... Ka8 {[%clk 0:00:02.9]} 27. Rxf6 {[%clk 0:00:47.1]} 27... Nxf6
{[%clk 0:00:03.3]} 28. Bxe5 {[%clk 0:00:47.4]} 28... Re8 {[%clk 0:00:03.9]} 29.
Bxf6 {[%clk 0:00:47.2]} 29... Rxe6 {[%clk 0:00:04.4]} 30. Bg5 {[%clk 0:00:45.4]}
30... Bc6 {[%clk 0:00:04.7]} 31. Rd1 {[%clk 0:00:44.4]} 31... Kb7 {[%clk
0:00:05.1]} 32. c4 {[%clk 0:00:43.8]} 32... Kc7 {[%clk 0:00:03.5]} 33. Bf4+
{[%clk 0:00:43.1]} 33... Kb7 {[%clk 0:00:03.2]} 34. Rd6 {[%clk 0:00:40.8]} 34...
Rxd6 {[%clk 0:00:03]} 35. Bxd6 {[%clk 0:00:41.7]} 35... Kb6 {[%clk 0:00:03.5]}
36. Kd2 {[%clk 0:00:39.8]} 36... Bd7 {[%clk 0:00:03.6]} 37. Ke3 {[%clk
0:00:39.2]} 37... Kc6 {[%clk 0:00:03.7]} 38. Be7 {[%clk 0:00:34.6]} 38... Be6
{[%clk 0:00:04]} 39. b3 {[%clk 0:00:35]} 39... Bh3 {[%clk 0:00:04.4]} 40. Kf4
{[%clk 0:00:28.7]} 40... Bg2 {[%clk 0:00:04.7]} 41. g4 {[%clk 0:00:20.9]} 1-0